bitfinex-derivatives/quotes_BNBF0:USTF0_20250329
["timestamp","ask_amount","ask_price","bid_price","bid_amount"]
[1743288385550,3.5744042,601.34,600.6,0.33300033]
[1743288385551,1.3957201,601.3,600.6,0.33300033]
[1743288385752,1.136,601.3,600.6,0.33300033]
[1743288387956,1.11269445,601.29,600.6,0.33300033]
[1743288388157,1.11269445,601.28,600.6,0.33300033]
[1743288388757,1.136,601.3,600.6,0.33300033]
[1743288389257,0.929,601.27,600.6,0.33300033]
[1743288392355,0.633,601.26,600.6,0.33300033]
[1743288400960,1.109,601.25,600.6,0.33300033]
[1743288414479,0.633,601.24,600.6,0.33300033]
[1743288415177,1.237,601.23,600.6,0.33300033]
[1743288419980,1.237,601.23,600.62,1.47398019]
[1743288420480,1.237,601.23,600.63,0.3329837]
[1743288420681,2.172,601.23,600.63,0.3329837]
[1743288421285,2.172,601.23,600.74,1.47398019]
[1743288422489,2.172,601.23,600.73,1.47398019]
[1743288424284,2.172,601.23,600.7,1.47398019]
[1743288426091,2.172,601.23,600.8,1.47398019]
[1743288427989,2.172,601.23,600.83,1.47398019]
[1743288429687,2.172,601.23,600.85,1.47398019]
[1743288431989,2.172,601.23,600.86,1.47398019]
[1743288433694,2.172,601.23,600.91,1.47398019]
[1743288433889,1.237,601.23,600.91,1.47398019]
[1743288435893,1.237,601.23,600.92,1.47398019]
[1743288437289,0.633,601.24,600.92,1.47398019]
[1743288439198,0.633,601.24,600.9,1.47398019]
[1743288439401,1.044,601.23,600.9,1.47398019]
[1743288442695,1.044,601.23,600.89,1.47398019]
[1743288444301,1.044,601.23,600.86,1.47398019]
[1743288446203,1.044,601.23,600.82,0.28944643]
[1743288447604,1.044,601.23,600.77,1.47398019]
[1743288447804,1.044,601.23,600.82,0.28948255]
[1743288448104,1.676,601.23,600.82,0.28948255]
[1743288450600,1.676,601.23,600.74,1.47398019]
[1743288450800,1.676,601.23,600.82,0.28948135]
[1743288451000,1.164,601.22,600.82,0.28948135]
[1743288451205,1.164,601.22,600.74,1.47398019]
[1743288451400,1.164,601.22,600.82,0.28948616]
[1743288451802,1.164,601.22,600.75,1.47398019]
[1743288452000,1.791,601.21,600.82,0.28948737]
[1743288454602,1.791,601.21,600.83,1.47398019]
[1743288459310,1.791,601.21,600.85,1.47398019]
[1743288461210,1.791,601.21,600.82,0.28947773]
[1743288461712,1.791,601.21,600.82,0.62235612]
[1743288462513,1.791,601.21,600.82,0.33287839]
[1743288462713,1.791,601.21,600.82,0.62231399]
[1743288464415,2.725,601.21,600.82,0.62231399]
[1743288465514,2.725,601.21,600.82,0.33287839]
[1743288465916,1.144,601.2,600.82,0.62237539]
[1743288468514,1.144,601.2,600.82,0.33287839]
[1743288468918,1.144,601.2,600.82,0.62231519]
[1743288469523,2.295,601.2,600.82,0.62231519]
[1743288471513,2.295,601.2,600.82,0.33287839]
[1743288471919,2.295,601.2,600.82,0.62235372]
[1743288473924,3.669,601.2,600.82,0.62235372]
[1743288474529,3.669,601.2,600.82,0.33287839]
[1743288475027,3.669,601.2,600.82,0.62232482]
[1743288475829,3.669,601.2,600.82,2.09630501]
[1743288476425,4.957,601.2,600.82,2.09630501]
[1743288476626,4.957,601.2,600.83,0.33287285]
[1743288476928,4.957,601.2,600.93,1.47398019]
[1743288477121,4.957,601.2,600.94,0.33281192]
[1743288478224,4.957,601.2,600.94,1.80679211]
[1743288479827,4.957,601.2,600.94,0.33281192]
[1743288488534,4.957,601.2,600.95,1.47398019]
[1743288491535,4.957,601.2,601.0,1.47398019]
[1743288492836,4.957,601.2,601.01,1.47398019]
[1743288493633,3.806,601.2,601.01,1.47398019]
[1743288494339,3.806,601.2,600.96,1.76336645]
[1743288494540,3.806,601.2,600.97,0.33279531]
[1743288496244,4.739,601.2,600.97,0.33279531]
[1743288497137,5.722,601.2,600.97,1.8067755]
[1743288497348,6.354,601.2,600.97,1.8067755]
[1743288498844,6.354,601.2,600.98,1.47398019]
[1743288499037,6.354,601.2,600.99,0.33278423]
[1743288499244,5.066,601.2,600.99,0.33278423]
[1743288499945,3.922,601.2,600.99,0.33278423]
[1743288501849,2.548,601.2,601.02,1.47398019]
[1743288502946,2.548,601.2,600.99,0.33278423]
[1743288514451,1.615,601.2,600.99,0.33278423]
[1743288520251,0.632,601.2,600.99,0.33278423]
[1743288520456,4.526,601.22,600.99,0.33278423]
[1743288523260,5.906,601.22,600.99,0.33278423]
[1743288523457,6.537,601.22,600.99,0.33278423]
[1743288538681,6.537,601.22,600.98,0.28944162]
[1743288539082,2.964,601.22,600.98,0.28944162]
[1743288539283,1.584,601.22,600.98,0.28944162]
[1743288540578,1.584,601.22,600.73,1.47398019]
[1743288540980,1.584,601.22,600.96,0.28949098]
[1743288541184,1.584,601.22,600.76,1.47398019]
[1743288541878,0.932,601.21,600.77,0.28949218]
[1743288542079,2.05,601.21,600.77,0.28949218]
[1743288542278,1.134,601.2,600.77,0.28949218]
[1743288543079,2.577,601.2,600.77,0.28949218]
[1743288543681,2.577,601.2,600.69,1.47398019]
[1743288543879,2.577,601.2,600.77,0.28950302]
[1743288544282,2.577,601.2,600.69,1.47398019]
[1743288544478,2.577,601.2,600.7,1.47398019]
[1743288545586,2.577,601.2,600.71,0.28950182]
[1743288549686,2.577,601.2,600.45,1.47398019]
[1743288549884,2.577,601.2,600.46,0.33307797]
[1743288550082,3.208,601.2,600.71,0.28955842]
[1743288550281,3.208,601.2,600.46,0.33307797]
[1743288550687,3.208,601.2,600.71,0.28955722]
[1743288550885,3.208,601.2,600.46,0.33307797]
[1743288551283,4.133,601.2,600.71,0.28955722]
[1743288551488,4.133,601.2,600.46,0.33307797]
[1743288551988,4.133,601.2,600.71,0.28955722]
[1743288552188,4.133,601.2,600.46,0.33307797]
[1743288552581,4.133,601.2,600.71,0.28954156]
[1743288552982,4.133,601.2,600.46,0.33307797]
[1743288553185,4.133,601.2,600.51,1.47398019]
[1743288553387,4.133,601.2,600.52,0.33304469]
[1743288553889,4.133,601.2,600.53,0.28953433]
[1743288554187,4.133,601.2,600.54,0.3330336]
[1743288554587,4.133,601.2,600.58,1.47398019]
[1743288557687,4.133,601.2,600.57,1.47398019]
[1743288557889,4.133,601.2,600.57,1.80699715]
[1743288559696,4.133,601.2,600.57,0.33301696]
[1743288563291,5.615,601.2,600.57,0.33301696]
[1743288567596,6.546,601.2,600.57,0.33301696]
[1743288587918,6.546,601.2,600.6,1.47398019]
[1743288589116,6.546,601.2,600.68,1.47398019]
[1743288591114,6.546,601.2,600.67,1.47398019]
[1743288593220,6.546,601.2,600.62,0.28951506]
[1743288594616,6.546,601.2,600.59,1.47398019]
[1743288595024,6.546,601.2,600.62,0.2895247]
[1743288597518,6.546,601.2,600.59,1.47398019]
[1743288597716,6.546,601.2,600.6,1.47398019]
[1743288597919,6.546,601.2,600.6,1.76350489]
[1743288600724,6.546,601.2,600.63,1.47398019]
[1743288602922,6.546,601.2,600.6,0.2895247]
[1743288603522,6.546,601.2,600.57,0.33301696]
[1743288603930,1.11254417,601.19,600.57,0.33301696]
[1743288604125,1.11254417,601.19,600.58,0.28957529]
[1743288604530,1.11254417,601.18,600.58,0.28957529]
[1743288605232,2.63242998,601.46,600.58,0.28957529]
[1743288605432,7.2135805,601.45,600.58,0.28957529]
[1743288605631,7.2135805,601.44,600.58,0.28957529]
[1743288605933,10.27302533,601.43,600.58,0.28957529]
[1743288606232,7.2138372,601.42,600.58,0.28957529]
[1743288606433,6.71524124,601.41,600.58,0.28957529]
[1743288606633,6.71524124,601.4,600.58,0.28957529]
[1743288606833,6.71524124,601.39,600.58,0.28957529]
[1743288607036,6.71524124,601.38,600.58,0.28957529]
[1743288607228,6.71524124,601.37,600.58,0.28957529]
[1743288607433,6.71524124,601.36,600.58,0.28957529]
[1743288607735,5.24685409,601.35,600.58,0.28957529]
[1743288607930,5.24685409,601.34,600.58,0.28957529]
[1743288608131,4.58145872,601.33,600.58,0.28957529]
[1743288608432,4.58145872,601.32,600.58,0.28957529]
[1743288608638,4.58145872,601.31,600.58,0.28957529]
[1743288608937,4.58145872,601.3,600.58,0.28957529]
[1743288609140,3.66367283,601.29,600.58,0.28957529]
[1743288609334,3.66367283,601.28,600.58,0.28957529]
[1743288609533,3.66367283,601.27,600.58,0.28957529]
[1743288609735,1.40910493,601.26,600.58,0.28957529]
[1743288609936,1.40910493,601.25,600.58,0.28957529]
[1743288610135,1.40910493,601.24,600.58,0.28957529]
[1743288610335,2.89312811,601.27,600.58,0.28957529]
[1743288610637,1.11274158,601.23,600.58,0.28957529]
[1743288610834,1.40911081,601.22,600.58,0.28957529]
[1743288611037,1.40911081,601.21,600.58,0.28957529]
[1743288611239,1.40911081,601.2,600.58,0.28957529]
[1743288611438,1.40911081,601.19,600.58,0.28957529]
[1743288611638,1.40911081,601.18,600.58,0.28957529]
[1743288611840,1.11274158,601.21,600.58,0.28957529]
[1743288612041,1.40899692,601.2,600.58,0.28957529]
[1743288612238,1.40899692,601.19,600.58,0.28957529]
[1743288612440,1.40899692,601.18,600.58,0.28957529]
[1743288612640,1.11274158,601.2,600.58,0.28957529]
[1743288612841,1.11274158,601.17,600.58,0.28957529]
[1743288613343,0.97,601.33,600.58,0.28957529]
[1743288613541,5.24608393,601.32,600.58,0.28957529]
[1743288613741,5.24608393,601.31,600.58,0.28957529]
[1743288613940,5.24608393,601.3,600.58,0.28957529]
[1743288614140,5.24608393,601.29,600.58,0.28957529]
[1743288614335,5.24608393,601.28,600.58,0.28957529]
[1743288614550,4.58079324,601.27,600.58,0.28957529]
[1743288614738,4.58079324,601.26,600.58,0.28957529]
[1743288614939,3.66313756,601.25,600.58,0.28957529]
[1743288615138,3.66313756,601.24,600.58,0.28957529]
[1743288615339,3.66313756,601.23,600.58,0.28957529]
[1743288615538,1.40889906,601.22,600.58,0.28957529]
[1743288615739,1.40889906,601.21,600.58,0.28957529]
[1743288615940,1.40889906,601.2,600.58,0.28957529]
[1743288616237,1.40889906,601.19,600.58,0.28957529]
[1743288616436,1.40889906,601.18,600.58,0.28957529]
[1743288616638,1.40889906,601.17,600.58,0.28957529]
[1743288616837,1.11265522,601.18,600.58,0.28957529]
[1743288617039,1.40853085,601.17,600.58,0.28957529]
[1743288617240,1.11265522,601.18,600.58,0.28957529]
[1743288617441,1.11265522,601.16,600.58,0.28957529]
[1743288618242,1.46775627,601.32,600.58,0.28957529]
[1743288618243,1.11265522,601.15,600.58,0.28957529]
[1743288618744,0.66533393,601.29,600.58,0.28957529]
[1743288618948,4.57903323,601.28,600.58,0.28957529]
[1743288619239,4.57903323,601.27,600.58,0.28957529]
[1743288619444,8.13598893,601.26,600.58,0.28957529]
[1743288619640,4.57895311,601.25,600.58,0.28957529]
[1743288619844,4.57895311,601.24,600.58,0.28957529]
[1743288620040,3.66172504,601.23,600.58,0.28957529]
[1743288620244,3.66172504,601.22,600.58,0.28957529]
[1743288620445,3.66172504,601.21,600.58,0.28957529]
[1743288620644,3.66124679,601.2,600.58,0.28957529]
[1743288620845,1.40835578,601.19,600.58,0.28957529]
[1743288621045,1.40835578,601.18,600.58,0.28957529]
[1743288621245,1.40835578,601.17,600.58,0.28957529]
[1743288621541,1.40835578,601.16,600.58,0.28957529]
[1743288621747,1.40835578,601.15,600.58,0.28957529]
[1743288621947,1.40835578,601.14,600.58,0.28957529]
[1743288622147,1.11215335,601.14,600.58,0.28957529]
[1743288623048,1.11215335,601.13,600.58,0.28957529]
[1743288623351,1.11215335,601.12,600.58,0.28957529]
[1743288623946,2.13232735,601.3,600.58,0.28957529]
[1743288624249,8.79787157,601.29,600.58,0.28957529]
[1743288624441,6.70895782,601.28,600.58,0.28957529]
[1743288624645,6.70895782,601.27,600.58,0.28957529]
[1743288624941,6.70895782,601.26,600.58,0.28957529]
[1743288625145,5.24215842,601.25,600.58,0.28957529]
[1743288625447,6.17115842,601.24,600.58,0.28957529]
[1743288625646,5.24215842,601.23,600.58,0.28957529]
[1743288625847,5.24215842,601.22,600.58,0.28957529]
[1743288626046,3.55571315,601.23,600.58,0.28957529]
[1743288626047,4.57679399,601.21,600.58,0.28957529]
[1743288626246,4.57679399,601.2,600.58,0.28957529]
[1743288626447,4.57679399,601.19,600.58,0.28957529]
[1743288626643,3.65993071,601.18,600.58,0.28957529]
[1743288626848,3.65993071,601.17,600.58,0.28957529]
[1743288627147,1.40766566,601.16,600.58,0.28957529]
[1743288627347,1.40766566,601.15,600.58,0.28957529]
[1743288627547,2.51933792,601.14,600.58,0.28957529]
[1743288627749,1.40766566,601.13,600.58,0.28957529]
[1743288628047,1.40766566,601.12,600.58,0.28957529]
[1743288628247,1.11167226,601.13,600.58,0.28957529]
[1743288628448,1.11167226,601.11,600.58,0.28957529]
[1743288628947,1.11167226,601.1,600.58,0.28957529]
[1743288629148,2.18567226,601.1,600.58,0.28957529]
[1743288629348,1.074,601.1,600.58,0.28957529]
[1743288630547,1.074,601.1,600.57,0.33301696]
[1743288631147,1.074,601.1,600.58,0.28958011]
[1743288632047,1.495,601.09,600.58,0.28958011]
[1743288633653,1.495,601.09,600.57,0.33301696]
[1743288635054,1.495,601.09,600.58,0.28959939]
[1743288636552,1.495,601.09,600.57,0.33301696]
[1743288637049,1.495,601.09,600.58,0.28959698]
[1743288637253,1.383,601.08,600.58,0.28959698]
[1743288637652,2.622,601.08,600.58,0.28959698]
[1743288639553,2.622,601.08,600.57,0.33301696]
[1743288640056,2.622,601.08,600.58,0.28959457]
[1743288640961,1.40519372,601.07,600.58,0.28959457]
[1743288641153,1.40519372,601.06,600.58,0.28959457]
[1743288641353,1.40519372,601.05,600.58,0.00059457]
[1743288641552,1.40519372,601.04,600.58,0.00059457]
[1743288641754,1.40519372,601.03,600.47,1.47398019]
[1743288641955,1.40519372,601.02,600.47,1.47398019]
[1743288642156,2.03519372,601.01,600.47,1.47398019]
[1743288642353,1.40519372,601.0,600.47,1.47398019]
[1743288642557,1.10953501,601.0,600.47,1.47398019]
[1743288642753,1.10953501,601.0,599.86,1.47398019]
[1743288642956,1.10953501,601.0,599.88,0.33340001]
[1743288643355,1.10953501,600.99,599.88,0.33340001]
[1743288643558,0.63,601.01,599.88,0.33340001]
[1743288644054,2.33,601.0,599.88,0.33340001]
[1743288644753,2.33,601.0,599.89,0.28971632]
[1743288645358,2.33,601.0,599.91,0.33338334]
[1743288648262,2.33,601.0,600.05,1.47398019]
[1743288648562,2.33,601.0,600.06,0.3333]
[1743288650358,2.33,601.0,600.09,1.47398019]
[1743288650562,2.33,601.0,600.11,0.33327223]
[1743288652564,1.506,600.99,600.11,0.33327223]
[1743288652961,1.506,600.99,600.32,1.47398019]
[1743288653159,1.506,600.99,600.33,0.3331501]
[1743288655768,1.506,600.99,600.36,1.47398019]
[1743288655968,1.506,600.99,600.37,0.3331279]
[1743288656373,0.63,600.98,600.37,0.3331279]
[1743288657271,0.63,600.98,600.42,1.47398019]
[1743288658970,0.63,600.98,600.43,1.47398019]
[1743288662681,0.63,600.98,600.44,1.47398019]
[1743288663682,1.22,600.97,600.44,1.47398019]
[1743288663981,1.22,600.97,600.45,0.33308352]
[1743288665483,1.28,600.96,600.45,0.33308352]
[1743288667086,0.929,600.95,600.45,0.33308352]
[1743288671492,2.424,600.95,600.45,0.33308352]
[1743288673193,3.054,600.95,600.45,0.33308352]
[1743288685006,4.251,600.95,600.45,0.33308352]
[1743288686810,5.489,600.95,600.45,0.33308352]
[1743288693316,6.735,600.95,600.45,0.33308352]
[1743288702623,6.735,600.95,600.46,1.47398019]
[1743288702823,6.735,600.95,600.47,0.33307242]
[1743288706231,6.735,600.95,600.5,1.47398019]
[1743288707932,6.735,600.95,600.54,1.47398019]
[1743288709334,6.735,600.95,600.47,0.33307242]
[1743288709335,6.735,600.95,600.49,1.47398019]
[1743288710734,6.735,600.95,600.47,0.33307242]
[1743288715130,6.735,600.95,600.49,1.47398019]
[1743288716837,6.735,600.95,600.48,1.47398019]
[1743288718436,6.735,600.95,600.47,0.33307242]
[1743288737360,1.10903178,600.94,600.47,0.33307242]
[1743288737955,3.04340702,601.24,600.47,0.33307242]
[1743288738151,6.69400372,601.23,600.47,0.33307242]
[1743288738360,7.19320751,601.22,600.47,0.33307242]
[1743288738660,6.69400372,601.21,600.47,0.33307242]
[1743288738860,6.69400372,601.2,600.47,0.33307242]
[1743288739055,6.69373725,601.19,600.47,0.33307242]
[1743288739255,10.24225203,601.18,600.47,0.33307242]
[1743288739463,6.69373725,601.17,600.47,0.33307242]
[1743288739665,6.69373725,601.16,600.47,0.33307242]
[1743288739955,5.23063848,601.15,600.47,0.33307242]
[1743288740154,4.56503343,601.14,600.47,0.33307242]
[1743288740356,4.56503343,601.13,600.47,0.33307242]
[1743288740557,5.84003343,601.12,600.47,0.33307242]
[1743288740757,4.56503343,601.11,600.47,0.33307242]
[1743288740960,4.56396233,601.1,600.47,0.33307242]
[1743288741155,4.56396233,601.09,600.47,0.33307242]
[1743288741360,3.6495256,601.08,600.47,0.33307242]
[1743288741661,4.28657342,601.07,600.47,0.33307242]
[1743288741860,1.40366369,601.06,600.47,0.33307242]
[1743288742060,1.40366369,601.05,600.47,0.33307242]
[1743288742360,2.88290973,601.07,600.47,0.33307242]
[1743288742361,1.40366369,601.04,600.47,0.33307242]
[1743288742560,1.40366369,601.03,600.47,0.33307242]
[1743288742754,1.40366369,601.02,600.47,0.33307242]
[1743288742958,1.40366369,601.01,600.47,0.33307242]
[1743288743159,1.10881143,601.05,600.47,0.33307242]
[1743288743361,1.40354843,601.04,600.47,0.33307242]
[1743288743557,1.10881143,601.0,600.47,0.33307242]
[1743288744464,1.10881143,600.99,600.47,0.33307242]
[1743288745476,2.721,601.1,600.47,0.33307242]
[1743288745670,1.40385259,601.09,600.47,0.33307242]
[1743288745871,1.40385259,601.08,600.47,0.33307242]
[1743288746069,1.40385259,601.07,600.47,0.33307242]
[1743288746274,1.40385259,601.06,600.47,0.33307242]
[1743288746574,2.51264768,601.05,600.47,0.33307242]
[1743288746773,1.40385259,601.04,600.47,0.33307242]
[1743288746970,1.10879509,601.05,600.47,0.33307242]
[1743288747277,2.721,601.1,600.47,0.33307242]
[1743288747476,1.40399818,601.09,600.47,0.33307242]
[1743288747675,1.40399818,601.08,600.47,0.33307242]
[1743288747874,1.40399818,601.07,600.47,0.33307242]
[1743288748076,1.40399818,601.06,600.47,0.33307242]
[1743288748271,1.10880868,601.07,600.47,0.33307242]
[1743288748476,2.51274798,601.06,600.47,0.33307242]
[1743288748675,1.10880868,601.06,600.47,0.33307242]
[1743288749176,1.10880868,601.05,600.47,0.33307242]
[1743288749477,1.10880868,601.04,600.47,0.33307242]
[1743288750074,2.721,601.1,600.47,0.33307242]
[1743288750272,1.40397123,601.09,600.47,0.33307242]
[1743288750473,2.721,601.1,600.47,0.33307242]
[1743288750474,1.40397123,601.08,600.47,0.33307242]
[1743288750676,2.51278541,601.07,600.47,0.33307242]
[1743288750878,1.10881418,601.07,600.47,0.33307242]
[1743288751279,1.10881418,601.06,600.47,0.33307242]
[1743288751680,1.10881418,601.05,600.47,0.33307242]
[1743288752176,2.721,601.1,600.47,0.33307242]
[1743288752377,1.40425429,601.09,600.47,0.33307242]
[1743288752577,1.40425429,601.08,600.47,0.33307242]
[1743288752777,1.10906907,601.08,600.47,0.33307242]
[1743288752974,1.40429496,601.07,600.47,0.33307242]
[1743288753173,1.10906907,601.08,600.47,0.33307242]
[1743288753372,1.40433968,601.07,600.47,0.33307242]
[1743288753573,1.10906907,601.06,600.47,0.33307242]
[1743288753879,2.721,601.1,600.47,0.33307242]
[1743288754080,1.40432876,601.09,600.47,0.33307242]
[1743288754281,1.40432876,601.08,600.47,0.33307242]
[1743288754581,2.721,601.1,600.47,0.33307242]
[1743288754779,1.10914418,601.07,600.47,0.33307242]
[1743288755181,2.721,601.1,600.47,0.33307242]
[1743288755479,1.40442307,601.09,600.47,0.33307242]
[1743288755777,1.10915943,601.09,600.47,0.33307242]
[1743288756385,1.10915943,601.08,600.47,0.33307242]
[1743288757181,0.629,601.08,600.47,0.33307242]
[1743288759581,1.68,601.08,600.47,0.33307242]
[1743288767587,2.686,601.08,600.47,0.33307242]
[1743288769091,4.459,601.08,600.47,0.33307242]
[1743288769892,5.385,601.08,600.47,0.33307242]
[1743288770091,6.647,601.08,600.47,0.33307242]
[1743288788908,6.647,601.08,600.55,1.47398019]
[1743288789111,6.647,601.08,600.56,0.33302251]
[1743288793812,6.647,601.08,600.56,1.8070027]
[1743288795009,6.647,601.08,600.56,0.33302251]
[1743288796816,6.647,601.08,600.59,1.47398019]
[1743288797411,6.647,601.08,600.6,0.33300033]
[1743288801018,6.647,601.08,600.6,1.80698052]
[1743288802714,6.647,601.08,600.6,0.33300033]
[1743288814824,6.647,601.08,600.61,1.47398019]
[1743288815026,6.647,601.08,600.61,1.80697497]
[1743288815730,6.647,601.08,600.63,1.47398019]
[1743288817330,6.647,601.08,600.61,0.62251948]
[1743288819234,6.647,601.08,600.62,1.47398019]
[1743288820934,6.647,601.08,600.72,1.47398019]
[1743288822633,6.647,601.08,600.62,1.47398019]
[1743288826338,6.647,601.08,600.61,0.62252068]
[1743288828738,6.647,601.08,600.61,0.33299478]
[1743288830039,6.647,601.08,600.61,0.62252791]
[1743288834849,6.647,601.08,600.61,0.33299478]
[1743288835041,6.647,601.08,600.61,0.62252189]
[1743288840552,6.647,601.08,600.73,1.47398019]
[1743288842848,6.647,601.08,600.68,1.47398019]
[1743288844950,6.647,601.08,600.67,0.28953795]
[1743288846751,6.647,601.08,600.66,1.47398019]
[1743288847150,6.647,601.08,600.67,0.28952108]
[1743288847356,6.647,601.08,600.67,1.76350127]
[1743288849758,6.647,601.08,600.67,1.47398019]
[1743288849959,6.647,601.08,600.69,1.47398019]
[1743288850258,6.647,601.08,600.7,0.33294489]
[1743288881876,6.647,601.08,600.7,1.80692508]
[1743288882977,6.647,601.08,600.73,1.47398019]
[1743288885069,6.647,601.08,600.74,0.33292272]
[1743288885977,6.647,601.08,600.76,1.47398019]
[1743288886979,6.647,601.08,600.92,1.47398019]
[1743288887174,1.051,601.08,600.92,1.47398019]
[1743288887478,6.70508458,601.69,600.92,1.47398019]
[1743288887678,6.70508458,601.68,600.92,1.47398019]
[1743288887878,6.70508458,601.67,600.92,1.47398019]
[1743288888078,6.70508458,601.66,600.92,1.47398019]
[1743288888279,6.70508458,601.65,600.92,1.47398019]
[1743288888479,6.70508458,601.64,600.92,1.47398019]
[1743288888687,5.23905176,601.63,600.92,1.47398019]
[1743288888876,5.23905176,601.62,600.92,1.47398019]
[1743288889080,4.57404541,601.61,600.91,1.47398019]
[1743288889282,4.5740556,601.6,600.91,1.47398019]
[1743288889482,3.65778509,601.59,600.91,1.47398019]
[1743288889680,3.65778509,601.58,600.91,1.47398019]
[1743288889886,3.65778509,601.57,600.91,1.47398019]
[1743288890087,1.40684042,601.56,600.91,1.47398019]
[1743288890388,1.40684042,601.55,600.91,1.47398019]
[1743288890688,2.47284042,601.54,600.84,0.28939589]
[1743288890883,1.40684042,601.53,600.84,0.28939589]
[1743288891087,1.40684042,601.52,600.84,0.28939589]
[1743288891287,1.40684042,601.51,600.84,0.28939589]
[1743288891485,2.51775961,601.5,600.84,0.28939589]
[1743288891688,1.11091919,601.5,600.79,1.47398019]
[1743288891883,1.11091919,601.5,600.78,1.47398019]
[1743288892086,1.11091919,601.49,600.84,0.28942116]
[1743288892383,1.11091919,601.48,600.84,0.28942116]
[1743288892888,1.066,601.54,600.84,0.28942116]
[1743288893088,1.4067647,601.53,600.84,0.28942116]
[1743288893286,1.066,601.54,600.84,0.62228847]
[1743288893483,1.066,601.54,600.85,0.33286177]
[1743288900998,1.40346071,601.53,600.85,0.33286177]
[1743288901198,1.066,601.54,600.85,0.33286177]
[1743288901394,1.40348704,601.53,600.85,0.33286177]
[1743288901591,1.40337004,601.52,600.85,0.33286177]
[1743288901793,1.40337004,601.51,600.85,0.33286177]
[1743288901993,1.40337004,601.5,600.85,0.33286177]
[1743288902196,1.10830689,601.5,600.85,0.33286177]
[1743288903000,1.10830689,601.49,600.85,0.33286177]
[1743288903493,1.10830689,601.48,600.85,0.33286177]
[1743288904199,1.10830689,601.47,600.85,0.33286177]
[1743288905000,1.10830689,601.46,600.85,0.33286177]
[1743288905595,1.066,601.54,600.85,0.33286177]
[1743288905799,1.40421935,601.53,600.85,0.33286177]
[1743288905999,1.40421935,601.52,600.85,0.33286177]
[1743288906194,1.40430704,601.51,600.85,0.33286177]
[1743288906395,1.40430704,601.5,600.85,0.33286177]
[1743288906598,1.10893001,601.51,600.85,0.33286177]
[1743288906796,1.10893001,601.49,600.85,0.33286177]
[1743288907296,1.066,601.54,600.85,0.33286177]
[1743288907501,1.10914619,601.48,600.85,0.33286177]
[1743288908404,1.10914619,601.47,600.85,0.33286177]
[1743288909104,1.10914619,601.46,600.85,0.33286177]
[1743288909806,1.10914619,601.45,600.85,0.33286177]
[1743288910104,2.38114619,601.45,600.85,0.33286177]
[1743288910299,1.272,601.45,600.85,0.33286177]
[1743288912004,3.281,601.45,600.85,0.33286177]
[1743288914606,4.728,601.45,600.85,0.33286177]
[1743288916907,1.10975075,601.44,600.85,0.33286177]
[1743288917614,1.10975075,601.43,600.85,0.33286177]
[1743288918113,4.728,601.45,600.85,0.33286177]
[1743288918915,1.10974634,601.44,600.85,0.33286177]
[1743288919713,1.10974634,601.43,600.85,0.33286177]
[1743288920416,4.728,601.45,600.85,0.33286177]
[1743288921018,5.355,601.45,600.85,0.33286177]
[1743288922520,1.10983705,601.44,600.85,0.33286177]
[1743288922912,5.355,601.45,600.85,0.33286177]
[1743288923820,6.278,601.45,600.85,0.33286177]
[1743288924019,1.10984884,601.44,600.85,0.33286177]
[1743288924924,4.269,601.45,600.85,0.33286177]
[1743288925420,1.40540789,601.44,600.85,0.33286177]
[1743288925622,1.40540789,601.43,600.85,0.33286177]
[1743288925822,4.269,601.45,600.85,0.33286177]
[1743288926123,1.10979052,601.42,600.85,0.33286177]
[1743288926925,4.269,601.45,600.85,0.33286177]
[1743288927120,1.40534595,601.44,600.85,0.33286177]
[1743288927324,1.10980533,601.44,600.85,0.33286177]
[1743288927525,2.66280533,601.44,600.85,0.33286177]
[1743288927919,1.10980533,601.43,600.85,0.33286177]
[1743288928525,1.10980533,601.42,600.85,0.33286177]
[1743288929226,1.553,601.44,600.85,0.33286177]
[1743288929931,1.10977379,601.43,600.85,0.33286177]
[1743288930328,1.553,601.44,600.85,0.33286177]
[1743288931729,1.10975482,601.43,600.85,0.33286177]
[1743288932028,1.553,601.44,600.85,0.33286177]
[1743288939931,2.874,601.44,600.85,0.33286177]
[1743288940534,3.797,601.44,600.85,0.33286177]
[1743288940932,4.923,601.44,600.85,0.33286177]
[1743288941328,1.40451103,601.43,600.85,0.33286177]
[1743288941527,1.40451103,601.42,600.85,0.33286177]
[1743288941732,1.40451103,601.41,600.85,0.33286177]